Cogmind - Beta 12 --- EXPLORER MODE // 2023.09.06 @ 22:10:07 Player: Analote Result: Self-destructed Performance ------------- Evolutions (4) 2000 Regions Visited (9) 1800 Robots Destroyed (103) 515 Value Destroyed (3978) 3978 Prototype IDs (9) 180 Alien Tech Used (0) 0 Bonus (2109) 2109 TOTAL SCORE: 10582 Bonus ------- High Alert Combat Kills 106 Follower Combat Kills 1038 Network Hubs Disabled 200 A7 Reached Mainframe 300 Met R17 at Cetus 500 Friendly Fire -35 Cogmind --------- Core Integrity 390/850 Matter 212/300 Energy 29/100 System Corruption 25% Temperature Cool (2) Movement Hovering (60) Location -6/Hub_04(d) Parts ------- > --- POWER (2) -------- (None) > --- PROPULSION (7) --- Gravmag Array > --- UTILITY (5) ------ Small Storage Unit Improved Melee Analysis Suite > --- WEAPON (2) ------- Improved Lightning Gun Cooled Particle Cannon > --- INVENTORY (8) ---- Improved Heat Sink Improved Lightning Gun Thermic Laser Advanced Variable Charge Gun Gauss Cannon Bore Cannon Peak State ------------ > --- POWER ------------ Light Nuclear Core Micro Nuclear Core > --- PROPULSION ------- Improved Airjet Combat Airjet Combat Airjet Gravmag Array Gravmag Array > --- UTILITY ---------- Advanced Heat Sink Small Storage Unit Melee Analysis Suite Improved Melee Analysis Suite Experimental Weapon Shielding > --- WEAPON ----------- Advanced Variable Charge Gun Cooled Particle Cannon > --- INVENTORY -------- Improved Lightning Gun Improved Lightning Gun Thermic Laser Advanced KE Penetrator Advanced KE Penetrator Gauss Cannon Bore Cannon [Rating: 78] Favorites ----------- Power Micro Nuclear Core Engine Light Ion Engine Power Core Micro Nuclear Core Propulsion Cesium-ion Thruster Treads Medium Treads Leg Aluminum Leg Hover Unit Improved Hover Unit Flight Unit Cesium-ion Thruster Utility Small Storage Unit Device Improved Heat Sink Storage Small Storage Unit Processor Melee Analysis Suite Protection Improved Medium Armor Plating Weapon Chainsword Energy Gun Advanced Variable Charge Gun Energy Cannon Cooled Particle Cannon Ballistic Gun Advanced KE Penetrator Ballistic Cannon Bore Cannon Launcher Mini Grenade Launcher Impact Weapon Maul Slashing Weapon Chainsword Build | -11 -10 -9 -8 -7 -6 -6 -6 -6 -6 ------- Run | Jun Mat Mat Mat Fac Fac Ext Cet Arc Hub Slots Evolved 9 | . 1 2 2 2 2 . . . . Power 1 | . . . 1 . . . . . . Propulsion 5 | . . 2 1 1 1 . . . . Utility 3 | . 1 . . 1 1 . . . . Weapon . | . . . . . . . . . . Parts Attached 124 | 7 7 13 9 54 2 13 3 . 16 Power 18 | 1 1 2 2 10 . 1 . . 1 Engine 10 | 1 1 2 2 3 . 1 . . . Core 8 | . . . . 7 . . . . 1 Reactor . | . . . . . . . . . . Propulsion 51 | 2 2 6 4 27 1 2 . . 7 Treads 2 | . . . . . . . . . 2 Leg 12 | 2 2 . . 8 . . . . . Wheel . | . . . . . . . . . . Hover 7 | . . . . . . 2 . . 5 Flight 30 | . . 6 4 19 1 . . . . Utility 25 | 2 1 3 2 9 1 5 . . 2 Device 14 | . 1 1 2 5 . 4 . . 1 Storage 3 | 1 . 1 . 1 . . . . . Processor 2 | . . . . 1 1 . . . . Hackware . | . . . . . . . . . . Protection 6 | 1 . 1 . 2 . 1 . . 1 Artifact . | . . . . . . . . . . Weapon 30 | 2 3 2 1 8 . 5 3 . 6 Energy Gun 10 | 1 2 . . 3 . 1 1 . 2 Energy Cannon 2 | . . . . . . . . . 2 Ballistic Gun 7 | 1 1 2 . . . . 1 . 2 Ballistic Cannon 2 | . . . . . . 1 1 . . Launcher 3 | . . . . 1 . 2 . . . Special Weapon . | . . . . . . . . . . Impact Weapon 2 | . . . 1 1 . . . . . Slashing Weapon 4 | . . . . 3 . 1 . . . Piercing Weapon . | . . . . . . . . . . Special Melee Weapon . | . . . . . . . . . . Unidentified Prototypes 9 | . . 2 . 1 . . 2 . 4 Corrupted Parts 1 | . . . . . . 1 . . . System Corruption 1 | . . . . . . 1 . . . Parts Lost 39 | . . . 1 17 . 8 . . 13 Power 6 | . . . 1 3 . . . . 2 Propulsion 20 | . . . . 11 . 5 . . 4 Utility 9 | . . . . 2 . 2 . . 5 Weapon 4 | . . . . 1 . 1 . . 2 Highest Loss Streak 9 | . . . 1 4 . 7 . . 9 To Critical Strikes . | . . . . . . . . . . Average Slot Usage (%) 73 | . 88 83 89 72 87 71 68 68 70 Engine 4 | . 11 10 13 3 . . 6 6 . Core 7 | . . . . 7 12 11 6 6 9 Leg 5 | . 23 . . 8 . . . . . Hover 4 | . . . . . . 5 12 12 16 Flight 11 | . . 36 41 14 43 13 . . . Device 9 | . 7 7 12 10 12 9 12 12 6 Storage 6 | . 12 8 8 6 6 6 6 6 6 Processor 7 | . . . . 7 6 12 12 12 11 Protection 2 | . 7 1 . 2 . 2 . . 3 Energy Gun 4 | . 11 1 . 3 . 1 7 6 7 Ballistic Gun 2 | . 11 18 8 . . . . 6 2 Impact Weapon 1 | . . . 3 2 . . . . . Slashing Weapon 2 | . . . . 4 6 4 . . . Naked Turns . | . . . . . . . . . . Heaviest Build 36 | 18 19 18 21 35 24 33 36 33 33 Greatest Support 77 | 20 20 17 22 77 36 36 14 14 73 Greatest Overweight (x) 10 | . 3 1 . 10 . 2 2 2 4 Average Overweight (x) . | . . . . . . . 2 2 . Largest Inventory Capacity 10 | 10 10 10 8 8 8 8 8 8 8 Average Capacity 8 | 8 10 7 8 7 8 8 8 8 8 Most Carried 8 | 5 7 7 8 8 6 8 8 8 8 Average Carried 5 | 2 3 4 7 4 5 6 7 8 7 Final Capacity 10 | 10 10 8 8 8 8 8 8 8 8 Final Carried 8 | 2 6 6 7 5 5 7 8 8 6 Class Distribution -------------------- 38% | Hacker-Mutant 37% | Scavenger-Mutant 17% | Hacker-Sprinter 5% | Machinist-Sprinter Dominant Class ---------------- Hacker-Mutant | -10/Materials Hacker-Sprinter | -9/Materials Hacker-Sprinter | -8/Materials Hacker-Mutant | -7/Factory Machinist-Sprinter | -6/Factory Scavenger-Mutant | -6/Extension Scavenger-Mutant | -6/Cetus Scavenger-Mutant | -6/Archives Scavenger-Mutant | -6/Hub_04(d) Resources | -11 -10 -9 -8 -7 -6 -6 -6 -6 -6 ----------- Run | Jun Mat Mat Mat Fac Fac Ext Cet Arc Hub Matter Collected 2076 | 210 91 310 233 645 20 103 224 24 216 Remotely . | . . . . . . . . . . Salvage Created 4546 | . 30 297 508 1541 152 464 60 54 1440 Parts 203 | . 2 14 22 56 7 19 5 1 77 Haulers Intercepted 4 | . . 1 . 1 . . . . 2 Recyclers Shooed . | . . . . . . . . . . Parts Field Recycled . | . . . . . . . . . . Retrieved Matter . | . . . . . . . . . . Parts Self-Destructed . | . . . . . . . . . . Prevented . | . . . . . . . . . . Kills | -11 -10 -9 -8 -7 -6 -6 -6 -6 -6 ------- Run | Jun Mat Mat Mat Fac Fac Ext Cet Arc Hub Combat Hostiles Destroyed 71 | . . 6 12 29 2 5 1 1 15 Melee 23 | . . . 1 16 2 4 . . . Guns 31 | . . 6 6 7 . . . 1 11 Cannons 3 | . . . 1 . . . 1 . 1 AOE 3 | . . . . . . 1 . . 2 Classes Destroyed 14 | . 1 6 1 4 1 . . . 1 Worker 7 | . . . . . . . . . 7 Builder 6 | . . . . 1 . 1 . . 4 Hauler 4 | . . 1 . 1 . . . . 2 Recycler 5 | . . . . 2 . 2 . . 1 Mechanic 1 | . . 1 . . . . . . . Operator 2 | . . . . . 1 . . . 1 Watcher 7 | . 1 1 2 1 . . . . 2 Swarmer 8 | . . . 2 . . 4 . . 2 Grunt 32 | . . 2 8 18 . . . . 4 Brawler 2 | . . 1 . . . . . . 1 Duelist 2 | . . 1 . . 1 . . . . Sentry 14 | . . 2 2 3 1 1 . 1 4 Hunter 3 | . . . . 1 . . . . 2 Programmer 8 | . . . . 7 . . . . 1 Cetus Guard 1 | . . . . . . . 1 . . Lightning 1 | . . . . . . . . . 1 Best Kill Streak 14 | . 1 7 7 3 3 3 1 1 14 Combat Bots Only 5 | . . 4 5 3 2 3 1 1 2 Max Kills in Single Turn 11 | . 1 1 1 1 1 1 1 1 11 Gunslinging . | . . . . . . . . . . Exploded 1 | . . . . . . 1 . . 1 Melee 1 | . . . 1 1 1 1 . . . Uniques/NPCs Destroyed . | . . . . . . . . . . Combat | -11 -10 -9 -8 -7 -6 -6 -6 -6 -6 -------- Run | Jun Mat Mat Mat Fac Fac Ext Cet Arc Hub Damage Taken 4796 | . . 123 329 1758 47 555 75 77 1832 Core 1067 | . . 28 63 516 7 149 . . 304 Absorbed by Shields 84 | . . . . . . 29 55 . . Redirected to Shielding 142 | . . . . . . . . . 142 Regen/Repaired (Parts) 277 | . . 9 19 249 . . . . . Core Remaining (%) 81 | 100 100 93 88 26 . . . . . Volleys Fired 220 | . 8 20 15 76 . 3 16 6 76 Largest 2 | . 2 2 2 2 . 1 2 2 2 Hottest 140 | . 60 60 50 99 . 30 137 115 140 Shots Fired 326 | . 16 40 30 75 . 3 24 10 128 Gun 289 | . 16 40 30 73 . . 7 10 113 Cannon 32 | . . . . . . . 17 . 15 Launcher 5 | . . . . 2 . 3 . . . Special . | . . . . . . . . . . Kinetic 142 | . 8 36 30 . . . 17 6 45 Thermal 151 | . . . . 73 . . 7 4 67 Explosive 5 | . . . . 2 . 3 . . . Electromagnetic 28 | . 8 4 . . . . . . 16 Robot Hit Streak 80 | . 2 13 12 80 . 2 6 8 21 Robot Miss Streak 3 | . 3 2 2 . . 1 1 1 3 Penetration Max 1 | . . . . . . . . 1 1 Secondary Targets 3 | . . 2 . . . . . . 1 Max Gunslinging Chain 1 | . . 1 . . . . . . 1 Shots Hit Robots 376 | . 6 38 40 132 8 24 15 9 104 Core Hits 144 | . 2 18 16 36 2 9 6 4 51 Critical Kills 11 | . . 1 . 2 . . 1 1 6 Critical Parts Destroyed 17 | . . . 2 8 . . 2 1 4 Critical Strikes 38 | . . 1 2 16 . 2 5 2 10 Burn 5 | . . . . 4 . . 1 . . Destroy 17 | . . 1 . . . . 4 2 10 Smash 13 | . . . 2 11 . . . . . Sever 3 | . . . . 1 . 2 . . . Melee Attacks 110 | . . . 14 65 8 23 . . . Impact 58 | . . . 14 44 . . . . . Slashing 52 | . . . . 21 8 23 . . . Piercing . | . . . . . . . . . . Sneak Attacks 13 | . . . 1 5 3 4 . . . Combat Hostiles 6 | . . . . 2 3 1 . . . Follow-up Attacks 1 | . . . . 1 . . . . . Damage Inflicted 12933 | . 112 819 1219 4194 605 1356 350 289 3989 Guns 5601 | . 112 819 576 1236 . . 96 289 2473 Cannons 632 | . . . . . . . 254 . 378 Explosions 1216 | . . . . . . 105 . . 1111 Melee 5457 | . . . 643 2958 605 1251 . . . Ramming 27 | . . . . . . . . . 27 Kinetic 2752 | . 44 773 576 . . . 254 149 956 Thermal 3164 | . . . . 1236 . . 96 140 1692 Explosive 105 | . . . . . . 105 . . . Electromagnetic 1428 | . 68 46 . . . . . . 1314 Impact 2421 | . . . 643 1778 . . . . . Slashing 3036 | . . . . 1180 605 1251 . . . Piercing . | . . . . . . . . . . Highest Corruption 25 | . . . . 8 . 2 3 3 25 Average Corruption 4 | . . . . 5 . 1 2 3 4 Corruption Purged . | . . . . . . . . . . Corruption Blocked . | . . . . . . . . . . Effects 86 | . . . . 52 . 5 7 5 17 Message Errors 19 | . . . . 12 . 1 . 2 4 Matter Fused 28 | . . . . 18 . 3 2 2 3 Heat Flow Errors 7 | . . . . 4 . . . 1 2 Energy Discharges 7 | . . . . 5 . . . . 2 Parts Rejected 3 | . . . . 1 . . . . 2 Data Loss (minor) 13 | . . . . 8 . . 3 . 2 Data Loss (major) 3 | . . . . 1 . . . . 2 Misfires 1 | . . . . . . . 1 . . Alerts 2 | . . . . . . 1 1 . . Weapon Failures 3 | . . . . 3 . . . . . Overload Shots . | . . . . . . . . . . Overflow Damage 1313 | . . . 162 670 169 185 . . 127 Projectiles 44 | . . . . . . . . . 44 Explosions 84 | . . . . . . 1 . . 83 Melee 1185 | . . . 162 670 169 184 . . . Knockbacks 20 | . . . 7 11 . . 2 . . Impact 16 | . . . 6 10 . . . . . Kinetic 2 | . . . . . . . 2 . . Secondary 2 | . . . 1 1 . . . . . Self-Inflicted Damage 114 | . . . . 19 . 14 . . 81 Shots 3 | . . . . 1 . 1 . . 1 Rammed 2 | . . . . . . . . . 2 Targets Rammed 2 | . . . . . . . . . 2 Kicked . | . . . . . . . . . . Crushed . | . . . . . . . . . . Highest Temperature 266 | . . 16 26 203 5 . 81 118 266 Average Temperature 54 | . . 10 9 45 5 . 34 36 72 Received Heat Transfer 1545 | . . 36 225 945 24 162 . 18 135 Effects 4 | . . . . . . . . . 4 Interference 4 | . . . . . . . . . 4 Siege Activations . | . . . . . . . . . . Robots Corrupted 1 | . . . . . . . . . 1 Combat Hostiles 1 | . . . . . . . . . 1 Parts Fried 22 | . . . 5 5 . . . . 12 Impact Corruptions 25 | . . . 6 19 . . . . . Robots Melted 1 | . . . . 1 . . . . . Combat Hostiles 1 | . . . . 1 . . . . . Parts Melted 11 | . . . . 9 . . . . 2 Heat Transferred 5185 | . . . . 2812 . . 306 148 1919 Parts Sabotaged . | . . . . . . . . . . Parts Stolen . | . . . . . . . . . . Parts Stripped . | . . . . . . . . . . Power Chain Reactions 2 | . . . . . . . . . 2 Missiles Intercepted . | . . . . . . . . . . Alert | -11 -10 -9 -8 -7 -6 -6 -6 -6 -6 ------- Run | Jun Mat Mat Mat Fac Fac Ext Cet Arc Hub Peak Influence 566 | . 40 237 548 397 133 272 252 111 566 Initial 180 | . . 12 71 180 48 47 16 . 26 Average 129 | . 35 109 252 99 88 166 111 97 239 Maximum Alert Level 2 | . . 1 2 1 . 1 1 . 2 Low Security (%) 79 | 100 100 92 33 87 100 55 83 100 64 Level 1 16 | . . 7 52 12 . 44 16 . 9 Level 2 4 | . . . 13 . . . . . 26 Level 3 . | . . . . . . . . . . Level 4 . | . . . . . . . . . . Level 5 . | . . . . . . . . . . High Security . | . . . . . . . . . . Max Security . | . . . . . . . . . . Squads Dispatched 21 | . . . 3 14 . 1 . . 3 Investigation 8 | . . . 2 6 . . . . . Extermination 8 | . . . . 7 . . . . 1 Reinforcement 5 | . . . 1 1 . 1 . . 2 Assault . | . . . . . . . . . . Garrison . | . . . . . . . . . . Intercept . | . . . . . . . . . . Searches Triggered . | . . . . . . . . . . Construction Impeded . | . . . . . . . . . . Haulers Reinforced 1 | . . . . . . . . . 1 Active Scanning Responses . | . . . . . . . . . . Cargo Convoy Interrupts . | . . . . . . . . . . Stealth | -11 -10 -9 -8 -7 -6 -6 -6 -6 -6 --------- Run | Jun Mat Mat Mat Fac Fac Ext Cet Arc Hub Distress Signals 7 | . . 1 2 . . 1 2 . 1 Communications Jammed . | . . . . . . . . . . Distress Signals . | . . . . . . . . . . Times Spotted 135 | . 3 8 23 31 2 18 11 5 34 Peak Tracking Total 12 | . 1 3 12 4 1 8 5 2 10 Tactical Retreats 12 | . . . 3 1 . 3 . . 5 Traps | -11 -10 -9 -8 -7 -6 -6 -6 -6 -6 ------- Run | Jun Mat Mat Mat Fac Fac Ext Cet Arc Hub Traps Triggered 13 | . 4 1 . 3 . 4 . . 1 Indirectly 1 | . . . . . . . . . 1 Trap Hack Attempts . | . . . . . . . . . . Triggered . | . . . . . . . . . . Disarmed . | . . . . . . . . . . Reprogrammed . | . . . . . . . . . . Reused . | . . . . . . . . . . Traps Extracted . | . . . . . . . . . . Installed . | . . . . . . . . . . Triggered . | . . . . . . . . . . Machines | -11 -10 -9 -8 -7 -6 -6 -6 -6 -6 ---------- Run | Jun Mat Mat Mat Fac Fac Ext Cet Arc Hub Machines Disabled 18 | . . . . . . 2 2 3 11 Max in Single Turn 5 | . . . . . . 2 1 . 5 Network Hub 1 | . . . . . . . . . 1 Machines Repaired . | . . . . . . . . . . Machines Sabotaged . | . . . . . . . . . . Overloaded Fab Kills . | . . . . . . . . . . Hacking | -11 -10 -9 -8 -7 -6 -6 -6 -6 -6 --------- Run | Jun Mat Mat Mat Fac Fac Ext Cet Arc Hub Machines Accessed 36 | . 1 3 3 10 1 15 1 . 2 Terminals 29 | . 1 2 2 5 1 15 1 . 2 Fabricators 2 | . . . . 2 . . . . . Repair Stations 4 | . . 1 1 2 . . . . . Recycling Units . | . . . . . . . . . . Scanalyzers 1 | . . . . 1 . . . . . Garrison Access . | . . . . . . . . . . Total Hacks 66 | . 2 5 8 29 1 18 1 . 2 Successful 49 | . 1 3 5 22 1 15 1 . 1 Failed 17 | . 1 2 3 7 . 3 . . 1 Catastrophic 1 | . . . . 1 . . . . . Database Lockouts . | . . . . . . . . . . Manual 25 | . 2 3 4 6 1 4 1 1 3 Terminals 40 | . 2 3 5 8 1 18 1 . 2 Fabricators 9 | . . . . 9 . . . . . Repair Stations 15 | . . 2 3 10 . . . . . Recycling Units . | . . . . . . . . . . Scanalyzers 2 | . . . . 2 . . . . . Garrison Access . | . . . . . . . . . . Terminal Hacks 14 | . . . . 1 . 11 1 . 1 Record 1 | . . . . . . . . . 1 Open Door 11 | . . . . . . 10 1 . . Open DSF 1 | . . . . 1 . . . . . Branch Access Points 1 | . . . . . . 1 . . . Fabricator Hacks 7 | . . . . 7 . . . . . Load Schematic 4 | . . . . 4 . . . . . Build 3 | . . . . 3 . . . . . Repair Station Hacks 15 | . . 2 3 10 . . . . . Scan Component 7 | . . 1 1 5 . . . . . Repair 7 | . . 1 1 5 . . . . . Refit 1 | . . . 1 . . . . . . Recycling Unit Hacks . | . . . . . . . . . . Scanalyzer 2 | . . . . 2 . . . . . Insert Component 1 | . . . . 1 . . . . . Analyze 1 | . . . . 1 . . . . . Garrison Access Hacks . | . . . . . . . . . . Unauthorized Hacks 11 | . 1 1 2 2 1 4 . . . Terminals 11 | . 1 1 2 2 1 4 . . . Botnet 11 | . 1 1 2 2 1 4 . . . Fabricators . | . . . . . . . . . . Repair Stations . | . . . . . . . . . . Recycling Units . | . . . . . . . . . . Scanalyzers . | . . . . . . . . . . Garrison Access . | . . . . . . . . . . Data Cores Recovered 2 | . . . . . 1 1 . . . Used 2 | . . . . . 1 1 . . . Hacking Detections 19 | . 1 2 2 8 . 3 . . 3 Full Trace Events 8 | . . . 2 6 . . . . . Feedback Events 1 | . . . . 1 . . . . . Corruption 1 | . . . . 1 . . . . . Feedback Blocked . | . . . . . . . . . . Robot Schematics Acquired . | . . . . . . . . . . Robots Built . | . . . . . . . . . . Authchips . | . . . . . . . . . . Time . | . . . . . . . . . . Total Robot Build Rating . | . . . . . . . . . . Part Schematics Acquired 1 | . . . . 1 . . . . . Parts Built 6 | . . . . 6 . . . . . Authchips . | . . . . . . . . . . Time 182 | . . . . 182 . . . . . Total Part Build Rating 18 | . . . . 18 . . . . . Parts Repaired 7 | . . 1 1 5 . . . . . Time 231 | . . 16 32 183 . . . . . Parts Recycled . | . . . . . . . . . . Recycled Matter . | . . . . . . . . . . Retrieved Matter . | . . . . . . . . . . Retrieved Components . | . . . . . . . . . . Parts Scanalyzed 1 | . . . . 1 . . . . . Part Schematics Acquired 1 | . . . . 1 . . . . . Parts Damaged . | . . . . . . . . . . Bothacking | -11 -10 -9 -8 -7 -6 -6 -6 -6 -6 ------------ Run | Jun Mat Mat Mat Fac Fac Ext Cet Arc Hub Used RIF Installer . | . . . . . . . . . . Robots Hacked . | . . . . . . . . . . Non-combat . | . . . . . . . . . . Combat . | . . . . . . . . . . Robot Hacks Applied . | . . . . . . . . . . Relay Couplers Released . | . . . . . . . . . . Fabnet Peak Effective % . | . . . . . . . . . . Robots Rewired . | . . . . . . . . . . Allies Hacked . | . . . . . . . . . . Hacks Repelled . | . . . . . . . . . . Allies | -11 -10 -9 -8 -7 -6 -6 -6 -6 -6 -------- Run | Jun Mat Mat Mat Fac Fac Ext Cet Arc Hub Total Allies 14 | . . . . . . 14 . . . Largest Group 7 | . . . . . . 7 7 3 2 Highest-Rated Group 355 | . . . . . . 355 355 227 68 Highest-Rated Ally 159 | . . . . . . 159 159 159 34 Total Orders . | . . . . . . . . . . Ally Attacks 109 | . . . . . . 39 40 17 13 Total Damage 2486 | . . . . . . 934 1070 308 174 Kills 22 | . . . . . . 5 13 3 1 Allies Corrupted . | . . . . . . . . . . Allies Melted . | . . . . . . . . . . Intel | -11 -10 -9 -8 -7 -6 -6 -6 -6 -6 ------- Run | Jun Mat Mat Mat Fac Fac Ext Cet Arc Hub Robot Analysis Total . | . . . . . . . . . . Derelict Logs Recovered . | . . . . . . . . . . Drone Launches . | . . . . . . . . . . Drone Recoveries . | . . . . . . . . . . Exploration | -11 -10 -9 -8 -7 -6 -6 -6 -6 -6 ------------- Run | Jun Mat Mat Mat Fac Fac Ext Cet Arc Hub Turns Passed 4886 | 70 208 155 234 2332 67 493 424 235 668 Spaces Moved 4166 | 48 138 182 461 1835 223 469 213 125 472 Core 51 | 4 1 . . 46 . . . . . Treads 58 | . . . . . . . . . 58 Legs 700 | 44 137 . . 519 . . . . . Wheels . | . . . . . . . . . . Hover 885 | . . . . . . 133 213 125 414 Flight 2472 | . . 182 461 1270 223 336 . . . Fastest Speed 17 | 50 120 26 24 20 17 17 176 176 50 Average Speed 76 | 114 121 28 24 77 17 76 176 176 85 Slowest Speed 550 | 120 200 106 24 550 20 194 176 176 300 Overloaded Moves . | . . . . . . . . . . Propulsion Burnouts . | . . . . . . . . . . Robots Hopped 2 | . . . 2 . . . . . . Cave-ins Triggered . | . . . . . . . . . . Exploration Rate (%) 41 | 5 27 19 50 22 8 71 80 88 46 Regions Visited 9 Branch Regions 4 Pre-discovered Areas . | . . . . . . . . . . Known Exits Taken 9 | 1 1 1 1 1 1 1 1 1 . Unknown Exits Taken . | . . . . . . . . . . Scrap Searched . | . . . . . . . . . . Spaces Dug . | . . . . . . . . . . Terrain Destroyed 222 | . . . . 10 . 29 2 . 181 Melee . | . . . . . . . . . . Projectile 15 | . . . . . . . 2 . 13 AOE 207 | . . . . 10 . 29 . . 168 Terrain Rammed . | . . . . . . . . . . Walls Destroyed . | . . . . . . . . . . Machines Disabled . | . . . . . . . . . . Actions | -11 -10 -9 -8 -7 -6 -6 -6 -6 -6 --------- Run | Jun Mat Mat Mat Fac Fac Ext Cet Arc Hub Total 5329 | 63 163 246 524 2555 234 563 240 130 611 Wait 518 | . . 16 13 449 . 14 . . 26 Move 4153 | 47 137 181 456 1834 222 468 212 124 472 Hop 2 | . . . 2 . . . . . . Pick Up 112 | 9 11 9 9 45 2 9 5 . 13 Fast Attach . | . . . . . . . . . . Attach 86 | 7 7 9 5 37 2 7 . . 12 Detach 6 | . . 2 . 1 . 3 . . . Swap 38 | . . 4 4 17 . 6 3 . 4 Drop 42 | . . 5 6 18 . 3 4 . 6 Fire 220 | . 8 20 15 76 . 3 16 6 76 Melee 108 | . . . 14 63 8 23 . . . Ram 2 | . . . . . . . . . 2 Kick . | . . . . . . . . . . Crush . | . . . . . . . . . . Escape Stasis 42 | . . . . 15 . 27 . . . Rewire . | . . . . . . . . . . Trap . | . . . . . . . . . . Miscellaneous . | . . . . . . . . . . Route ------- -11/Junkyard -10/Materials -9/Materials -8/Materials (discovered 2 exits: *Fac / *Sto) -7/Factory -6/Factory -6/Extension (discovered 2 exits: *Fac / *Cet) -6/Cetus (discovered 2 exits: *Fac / *Arc) -6/Archives (discovered 3 exits: *Fac / *Hub x2) -6/Hub_04(d) (discovered 2 exits: *Fac x2) History --------- Turn | Location | Event 8 | -11/Junkyard | Identified exit to Materials 8 | -11/Junkyard | Discovered exit to Materials (range 16) 71 | -11/Junkyard | Entered Materials 71 | -10/Materials | Evolved 1 slot: Utility x1 233 | -10/Materials | Identified exit to Materials 233 | -10/Materials | Discovered exit to Materials (range 16) 279 | -10/Materials | Entered another Materials area 279 | -9/Materials | Evolved 2 slots: Propulsion x2 365 | -9/Materials | Repaired VTOL Module 433 | -9/Materials | Identified exit to Materials 433 | -9/Materials | Discovered exit to Materials (range 4) 434 | -9/Materials | Entered another Materials area 434 | -8/Materials | Evolved 2 slots: Power x1, Propulsion x1 473 | -8/Materials | Identified exit to Storage 473 | -8/Materials | Discovered exit to Storage (range 10) 626 | -8/Materials | Repaired VTOL Module? 635 | -8/Materials | Identified exit to Factory 635 | -8/Materials | Discovered exit to Factory (range 15) 668 | -8/Materials | Entered Factory 668 | -7/Factory | Evolved 2 slots: Propulsion x1, Utility x1 695 | -7/Factory | Build established: Hacker-Sprinter 825 | -7/Factory | Repaired Lgt. Ion Engine 929 | -7/Factory | Repaired VTOL Module 969 | -7/Factory | Repaired Cesium-ion Thruster 1110 | -7/Factory | Lost 3 parts (1p2n) 1409 | -7/Factory | Lost 4 parts (1p2n1u) 1493 | -7/Factory | Build established: Hacker-Mutant 1717 | -7/Factory | Fabricated Cesium-ion Thruster (x2) 1814 | -7/Factory | Core integrity fell below 50% 2527 | -7/Factory | Repaired Broken Mic. Nuclear Core 2738 | -7/Factory | Fabricated Cesium-ion Thruster (x2) 2835 | -7/Factory | Fabricated Cesium-ion Thruster (x2) 2931 | -7/Factory | Repaired Sml. Storage Unit 2996 | -7/Factory | Identified exit to Factory 2996 | -7/Factory | Discovered exit to Factory (range 14) 3000 | -7/Factory | Entered another Factory area 3000 | -6/Factory | Evolved 2 slots: Propulsion x1, Utility x1 3064 | -6/Factory | Identified exit to Extension 3064 | -6/Factory | Discovered exit to Extension (range 15) 3067 | -6/Factory | Entered Extension 3096 | -6/Extension | Rescued A7 3122 | -6/Extension | Rescued a captive Derelict 3123 | -6/Extension | Rescued a captive Derelict 3125 | -6/Extension | Rescued a captive Derelict 3138 | -6/Extension | Rescued a captive Derelict 3143 | -6/Extension | Rescued a captive Derelict 3144 | -6/Extension | Rescued a captive Derelict 3145 | -6/Extension | Spotted B-75 Beast 3150 | -6/Extension | Spotted B-75 Beast 3165 | -6/Extension | Identified exit to Cetus 3220 | -6/Extension | Lost 7 parts (5n1u1w) 3230 | -6/Extension | Rescued a captive Derelict 3231 | -6/Extension | Rescued a captive Derelict 3334 | -6/Extension | Rescued a captive Derelict 3359 | -6/Extension | Rescued a captive Derelict 3371 | -6/Extension | Rescued a captive Derelict 3458 | -6/Extension | Rescued a captive Derelict 3459 | -6/Extension | Rescued a captive Derelict 3532 | -6/Extension | Identified exit to Factory 3532 | -6/Extension | Discovered exit to Factory (range 10) 3560 | -6/Extension | Entered Cetus 3560 | -6/Cetus | Accompanied by 7 allies (A7) 3565 | -6/Cetus | Acquired a Cetus Manufacturing Module code from A7 3584 | -6/Cetus | Spotted Cetus Guard 3584 | -6/Cetus | Spotted Cetus Guard 3589 | -6/Cetus | Spotted Cetus Guard 3590 | -6/Cetus | Spotted Cetus Guard 3595 | -6/Cetus | Allies destroyed Cetus Guard 3597 | -6/Cetus | Allies destroyed Cetus Guard 3599 | -6/Cetus | Allies destroyed Cetus Guard 3601 | -6/Cetus | Allies destroyed Cetus Guard 3638 | -6/Cetus | Build established: Scavenger-Mutant 3805 | -6/Cetus | Escorted A7 to Cetus Mainframe 3846 | -6/Cetus | Identified exit to Archives 3846 | -6/Cetus | Discovered exit to Archives (range 16) 3880 | -6/Cetus | Spotted Cetus Guard 3880 | -6/Cetus | Spotted Cetus Guard 3882 | -6/Cetus | Destroyed Cetus Guard 3882 | -6/Cetus | Spotted Cetus Guard 3883 | -6/Cetus | Spotted Cetus Guard 3888 | -6/Cetus | Allies destroyed Cetus Guard 3893 | -6/Cetus | Allies destroyed Cetus Guard 3894 | -6/Cetus | Allies destroyed Cetus Guard 3902 | -6/Cetus | Discovered exit to Factory (range 16) 3913 | -6/Cetus | Met Revision 17 3984 | -6/Cetus | Entered Archives 3984 | -6/Archives | Accompanied by 3 allies (A7) 3989 | -6/Archives | Received a hacking code to weaken MAIN.C 4036 | -6/Archives | Identified exit to Hub_04(d) 4036 | -6/Archives | Discovered exit to Hub_04(d) (range 16) 4064 | -6/Archives | Unable to access archive contents 4083 | -6/Archives | Discovered exit to Hub_04(d) (range 16) 4145 | -6/Archives | Discovered exit to Factory (range 14) 4219 | -6/Archives | Entered Hub_04(d) 4219 | -6/Hub_04(d) | Accompanied by 2 allies 4525 | -6/Hub_04(d) | Discovered exit to Factory (range 11) 4762 | -6/Hub_04(d) | Network Hub disabled 4779 | -6/Hub_04(d) | Spotted Lightning 4779 | -6/Hub_04(d) | Spotted Lightning 4782 | -6/Hub_04(d) | Spotted Lightning 4786 | -6/Hub_04(d) | Discovered exit to Factory (range 14) 4802 | -6/Hub_04(d) | Spotted Lightning 4853 | -6/Hub_04(d) | Spotted Lightning 4854 | -6/Hub_04(d) | Spotted Lightning 4863 | -6/Hub_04(d) | System corruption reached 10% 4868 | -6/Hub_04(d) | Destroyed Lightning 4873 | -6/Hub_04(d) | Core integrity fell below 50% 4887 | -6/Hub_04(d) | Self-destructed Last Messages --------------- 04868_ Switching to secondary target: Y-54 Guardian. 04868_ Slug penetrates Wall. 04868_ Penetrated by EMDS Slug. 04868_ EMDS Slug penetrates Control Node. 04869_ Penetrated by EMDS Slug. 04870_ EMDS Slug penetrates Wall. 04871_ Slug penetrates Lightning. 04871_ Penetrated by EMDS Slug. 04873_ Adv. KE Penetrator destroyed. 04873_ Penetrated by EMDS Slug. 04873_ Cmb. Airjet destroyed. 04874_ Slug penetrates Lightning. 04874_ Penetrated by EMDS Slug. 04875_ Adv. KE Penetrator destroyed. 04876_ Penetrated by EMDS Slug. 04880_ 51PZGS&O48HK>HOC9QANRSY3WSLZTI R6JZ U 04881_ Penetrated by EMDS Slug. 04881_ Adv. Heat Sink destroyed. 04881_ Mic. Nuclear Core destroyed. 04882_ Penetrated by EMDS Slug. Map ----- +----------------------------------------------------+ | * #### [%! #?# " " !! #??????????????? | | #?#"[ ##### = #?# " " ] #??????????????? | | #?##%!#???######?# " " #???????? #???? | | #########??#=!#??????????# =#???????? ##??? | | ?? ##### ?##############+####???????? #??? | | ## #??????????? ###? | | # #???????????< ?? | | # ### ######### ##+#####????????? #??? | | # #?##"###???????# # #????????? #??? | | " #??# ######## # #?????#### "#???? | | " #??# # #??######""###??? | | "! % #??# + =#??# =%= #??? | | "|%! = #??# ?????#####+#;# #??# ! #??? | | %![[! #???#???????# # #??# #??? | | |==%!! #???????????# ########??# % "" #??? | | ""*""""##???????????# " " #?????????# "" #??? | | " #????????????# " #?????????# = "" #??? | | " #????????????# "]!!#??##?????# = = #??? | | " #????????????# i%[!########??# #??? | | " #????????????#hi "h## ########+#####??? | | =%"" #????????????#h "=;# #?????? | | # "" #????????????#h h!=## #?????? | | # |#????????????# Y ;# #?????? | | # #????????????# " ## [ ###########?????? | | # """" #????????????# " ### [%#############????? | | # """" #????????????# " @#?#=%!# #????? | | # """" #????????????# #?#=]]# """ #????? | | # """" #????????????#! !#?# /]# """" "T" #????? | | # #????????????# #?#!=]+ """" #????? | | # """" #????????????#######?# %# """" #????? | | # """" #????????????????????# %=# """" #????? | | # """" #????????????????????# !# *#????? | | + """" #????????????????????# !#############????? | | # #???????????????????##% ##????????????###? | | ############################ ################# | | !% % " ] /* * | | % "" *% ! = | | %= ! | | ############################ ################# | | ???????????????????????????#######???????????????? | | ?????????????????????????????????????????????????? | | | | | | | | | | | | | | | | | | | +----------------------------------------------------+ Best States ------------- Heat Dissipation 75 Energy Generation 28 Energy Capacity 325 Matter Stores 300 Matter Capacity 300 Sight Range 16 Robot Scan Range 15 Terrain Scan Density 10 Armor Coverage 225 Resistance: KI 35 Resistance: TH 35 Resistance: EX 35 Resistance: EM 35 Resistance: I 35 Resistance: S 35 Resistance: P 35 Utility Shielding 33 Weapon Shielding 90 Phase Shifting 5 Evasion (%) 66 Melee Accuracy 11 Recoil Reduction 2 Offensive Hacking 20 Item Schematics ----------------- Cesium-ion Thruster | -7/Factory | Scanalyzed Robot Schematics ------------------ None Fabricated ------------ Cesium-ion Thruster | x2 | -7/Factory Cesium-ion Thruster | x2 | -7/Factory Cesium-ion Thruster | x2 | -7/Factory Alien Tech Used ----------------- None Achievements -------------- Main Advantage Prison Break Revising The Future Challenges ------------ None Game ------ Seed DroneLauncherTearclaws Manual? 0 Play Time 00:51:06 Cumulative 62.2 hours Start 2023.09.06 @ 21:20:12 End 2023.09.06 @ 22:10:07 Sessions 1 Manual Loads 0 Difficulty Explorer Special Mode None Game No. 91 Rogue 1 Adventurer 1 Explorer 89 Win Type - Total 0 Types 0/0/0/0/0/0/0/0/0 Lore% 48 Gallery% 54 Achievement% 53 Wizard Run 0 Options --------- ASCII 0 Keyboard 0 Movement Numpad Keybinds 0 Fullscreen 2 Font 18/SmallcapsGlow Map View 76x50 Tactical HUD 1 Map Filters NONE Filters NONE Steam 1 RUN: c7bdefb6-1662-4747-ac56-f983e7a24825